bitfinex/quotes_SOLUSD_20220109
["timestamp","ask_amount","ask_price","bid_price","bid_amount"]
[1641704013070,24.5044,143.36,143.29,31.18766251]
[1641704014871,34.973,143.36,143.29,41.65586251]
[1641704015071,24.5044,143.36,143.29,31.18766251]
[1641704015272,24.5044,143.36,143.25,112.7097]
[1641704015473,1.25719232,143.35,143.25,10.12]
[1641704015674,4.25719232,143.35,143.19,23.669]
[1641704015874,4.25719232,143.35,143.2,111.047]
[1641704016073,1.25719232,143.34,143.2,111.047]
[1641704016374,34.9176,143.31,143.21,29.1551858]
[1641704016573,34.9176,143.31,143.22,23.3608]
[1641704016775,34.9176,143.31,143.22,23.6208]
[1641704016974,10.4745,143.28,143.22,23.6208]
[1641704017174,24.6675,143.3,143.21,10.12]
[1641704017582,3.0,143.29,143.2,3.0]
[1641704017775,3.0,143.29,143.16,13.12]
[1641704017975,10.4796,143.21,143.16,13.12]
[1641704018175,10.4796,143.21,143.17,28.90592771]
[1641704019577,10.4789,143.22,143.17,28.90592771]
[1641704020403,22.8458,143.24,143.17,28.90592771]
[1641704020603,57.7807,143.24,143.14,10.12]
[1641704020802,3.0,143.23,143.14,10.12]
[1641704021002,3.0,143.23,143.15,3.0]
[1641704021204,3.0,143.23,143.14,10.12]
[1641704021403,22.8458,143.24,143.14,10.12]
[1641704021605,22.8458,143.24,143.15,29.31145692]
[1641704021904,3.0,143.23,143.15,29.31145692]
[1641704022105,22.8458,143.24,143.15,29.31145692]
[1641704022304,98.0963,143.27,143.16,0.26]
[1641704022504,3.0,143.26,143.16,0.26]
[1641704023106,24.765,143.26,143.16,3.26]
[1641704023408,10.4773,143.24,143.16,13.7376]
[1641704023606,24.765,143.26,143.16,13.7376]
[1641704024408,10.4793,143.22,143.16,3.26]
[1641704024606,24.765,143.26,143.16,3.26]
[1641704024806,3.0,143.25,143.16,3.26]
[1641704025409,24.765,143.26,143.16,3.26]
[1641704025608,3.0,143.25,143.16,3.26]
[1641704025808,10.478,143.24,143.16,13.7372]
[1641704026010,98.0963,143.27,143.16,13.7372]
[1641704026409,3.0,143.26,143.16,13.7372]
[1641704027409,98.0963,143.27,143.16,15.39065313]
[1641704027614,98.0963,143.27,143.16,4.91345313]
[1641704027812,98.0963,143.27,143.16,3.26]
[1641704027813,10.4786,143.23,143.16,3.26]
[1641704028014,133.024,143.27,143.16,3.26]
[1641704028816,10.4777,143.24,143.16,13.7376]
[1641704029015,10.4777,143.24,143.16,23.8576]
[1641704029214,57.8598,143.26,143.16,13.38]
[1641704029518,3.0,143.25,143.16,13.38]
[1641704029917,10.4795,143.21,143.16,13.38]
[1641704030116,3.0,143.25,143.16,13.38]
[1641704030616,37.9328,143.25,143.16,10.38]
[1641704030916,10.4795,143.21,143.16,10.38]
[1641704031117,34.9328,143.25,143.16,10.38]
[1641704031617,22.93,143.26,143.16,10.38]
[1641704032021,10.4774,143.24,143.16,20.8572]
[1641704032620,22.93,143.26,143.16,20.8572]
[1641704033021,10.4782,143.23,143.16,10.38]
[1641704033220,22.93,143.26,143.16,10.38]
[1641704034321,22.93,143.26,143.17,3.0]
[1641704034523,10.4772,143.25,143.18,24.21839325]
[1641704034723,10.4772,143.25,143.18,23.95839325]
[1641704036722,33.4061,143.26,143.18,34.43469325]
[1641704037324,22.93,143.26,143.18,34.43469325]
[1641704037524,22.93,143.26,143.19,0.26]
[1641704037726,22.93,143.26,143.2,10.4745]
[1641704038424,22.93,143.26,143.21,23.94811576]
[1641704038625,98.0963,143.27,143.21,23.94811576]
[1641704038828,14.58376185,143.26,143.21,23.94811576]
[1641704039027,14.58376185,143.26,143.21,34.42221576]
[1641704039227,14.58376185,143.26,143.21,23.94811576]
[1641704040327,25.06006185,143.26,143.19,0.26]
[1641704040526,14.58376185,143.26,143.19,3.0]
[1641704041129,14.58376185,143.26,143.18,10.4759]
[1641704041329,14.58376185,143.26,143.19,31.98614309]
[1641704041528,25.05986185,143.26,143.19,42.46164309]
[1641704041729,14.58376185,143.26,143.19,31.98614309]
[1641704042629,14.58376185,143.26,143.19,42.46174309]
[1641704042830,14.58376185,143.26,143.2,0.26]
[1641704043029,14.58376185,143.26,143.2,3.0]
[1641704043830,14.58376185,143.26,143.21,10.4737]
[1641704044029,14.58376185,143.26,143.22,28.2811252]
[1641704047861,25.05976185,143.26,143.22,28.2811252]
[1641704048659,14.58376185,143.26,143.22,28.2811252]
[1641704049058,25.05976185,143.26,143.22,28.2811252]
[1641704049458,14.58376185,143.26,143.22,28.2811252]
[1641704052765,25.05986185,143.26,143.22,28.2811252]
[1641704053364,14.58376185,143.26,143.22,28.2811252]
[1641704053976,3.95729587,143.28,143.22,38.7546252]
[1641704054573,3.95729587,143.29,143.22,38.7546252]
[1641704056277,38.14079587,143.3,143.22,38.7546252]
[1641704058081,27.66779587,143.3,143.22,38.7546252]
[1641704059983,1.98015012,143.27,143.22,38.7546252]
[1641704060186,1.98015012,143.27,143.22,10.4735]
[1641704060387,1.98015012,143.27,143.21,10.12]
[1641704061186,26.48582559,143.26,143.15,25.63625247]
[1641704061386,10.48,143.22,143.15,25.63625247]
[1641704061585,34.9379,143.23,143.15,27.60372269]
[1641704061986,3.0,143.22,143.15,27.60372269]
[1641704062384,10.4797,143.21,143.15,27.60372269]
[1641704062595,10.4797,143.21,143.15,25.63625247]
[1641704062788,1.98015012,143.22,143.15,25.63625247]
[1641704063787,10.4808,143.19,143.15,25.63625247]
[1641704064489,1.98015012,143.22,143.15,25.63625247]
[1641704064889,10.4798,143.21,143.15,25.63625247]
[1641704065121,1.98015012,143.23,143.15,35.75625247]
[1641704065419,1.98015012,143.23,143.16,3.25]
[1641704065617,1.98015012,143.23,143.16,0.25]
[1641704065823,25.64687579,143.24,143.15,35.75625247]
[1641704066018,10.4795,143.23,143.15,10.12]
[1641704066419,25.64687579,143.24,143.15,10.12]
[1641704066620,1.98015012,143.23,143.15,10.12]
[1641704067924,10.4798,143.22,143.15,10.12]
[1641704069621,10.4805,143.21,143.15,10.12]
[1641704070022,25.36885012,143.23,143.15,10.12]
[1641704070224,3.0,143.22,143.15,10.12]
[1641704070831,10.4813,143.2,143.15,10.12]
[1641704072128,10.4799,143.22,143.15,10.12]
[1641704072529,25.36885012,143.23,143.15,10.12]
[1641704073030,23.3887,143.23,143.15,20.5987]
[1641704073431,12.45845012,143.24,143.16,30.487606]
[1641704074430,1.98015012,143.24,143.16,40.965406]
[1641704075632,103.92065012,143.25,143.16,40.965406]
[1641704075831,103.92065012,143.25,143.17,3.0]
[1641704076039,103.92065012,143.25,143.18,0.26]
[1641704076832,10.4783,143.24,143.18,0.26]
[1641704077232,103.92065012,143.25,143.18,0.26]
[1641704078333,103.92065012,143.25,143.17,3.0]
[1641704079234,12.45875012,143.24,143.17,3.0]
[1641704079533,1.98015012,143.24,143.17,3.0]
[1641704079935,1.98015012,143.24,143.18,10.63]
[1641704080234,1.98015012,143.25,143.18,17.767]
[1641704080434,1.98015012,143.25,143.2,10.4744]
[1641704080637,1.98015012,143.25,143.21,40.71664124]
[1641704080834,1.98015012,143.28,143.21,44.22664124]
[1641704081033,1.98015012,143.28,143.22,3.0]
[1641704081434,1.98015012,143.28,143.23,10.731]
[1641704081634,1.98015012,143.28,143.24,26.90868855]
[1641704081835,1.98015012,143.3,143.24,26.90868855]
[1641704082037,1.98015012,143.3,143.25,0.26]
[1641704082436,1.98015012,143.3,143.25,10.9808]
[1641704082737,1.98015012,143.3,143.25,26.8098]
[1641704082938,1.98015012,143.3,143.26,3.0]
[1641704083437,1.98015012,143.3,143.27,23.33994183]
[1641704083768,1.98015012,143.34,143.28,10.4688]
[1641704085936,1.98015012,143.34,143.29,0.26]
[1641704086137,1.98015012,143.35,143.3,10.4643]
[1641704086336,1.98015012,143.35,143.31,30.12599911]
[1641704086538,1.98015012,143.35,143.31,33.12599911]
[1641704087138,1.98015012,143.35,143.32,10.4644]
[1641704087338,6.06431425,143.34,143.32,10.4644]
[1641704087551,6.06431425,143.34,143.33,3.0]
[1641704087738,1.98015012,143.36,143.33,11.319]
[1641704088139,1.98015012,143.36,143.33,18.7836]
[1641704088941,12.4284938,143.37,143.33,18.7836]
[1641704089140,12.4284938,143.37,143.35,10.4634]
[1641704089739,10.44834368,143.37,143.35,10.4634]
[1641704090443,16.51265793,143.37,143.35,10.4634]
[1641704091042,13.48045796,143.37,143.35,10.4634]
[1641704091646,10.44834368,143.37,143.35,10.4634]
[1641704092043,10.44834368,143.37,143.36,3.0]
[1641704092244,10.44834368,143.37,143.36,13.4616]
[1641704093947,10.44834368,143.37,143.36,10.4616]
[1641704096054,10.44834368,143.37,143.36,13.4616]
[1641704096456,10.44834368,143.37,143.36,10.4616]
[1641704098158,10.44834368,143.37,143.35,10.4637]
[1641704098358,10.44834368,143.37,143.35,13.4637]
[1641704099589,10.44834368,143.37,143.35,10.4637]
[1641704101591,16.51265793,143.37,143.35,10.4637]
[1641704101789,16.51265793,143.37,143.34,32.89475409]
[1641704102190,16.51265793,143.37,143.31,45.0005]
[1641704102392,16.51265793,143.37,143.32,3.26]
[1641704102591,16.51265793,143.37,143.32,13.12]
[1641704102791,16.51265793,143.37,143.32,23.5852]
[1641704103292,10.44834368,143.37,143.32,20.5852]
[1641704103892,10.44834368,143.37,143.33,26.29246732]
[1641704104092,10.44834368,143.37,143.35,10.463]
[1641704107296,10.44834368,143.37,143.33,23.29246732]
[1641704108901,9.94834368,143.37,143.33,23.29246732]
[1641704109998,9.94834368,143.37,143.33,33.75746732]
[1641704111500,9.94834368,143.37,143.34,3.0]
[1641704111700,9.94834368,143.37,143.35,10.4623]
[1641704111901,12.98045796,143.37,143.35,10.4623]
[1641704112099,12.98045796,143.37,143.36,3.0]
[1641704112299,16.01265793,143.37,143.34,3.0]
[1641704113501,16.01265793,143.37,143.33,58.16676732]
[1641704113705,15.51265793,143.37,143.33,58.16676732]
[1641704114005,17.49280805,143.37,143.33,58.16676732]
[1641704114202,17.49280805,143.37,143.33,23.29246732]
[1641704115004,17.49280805,143.37,143.28,10.12]
[1641704115211,23.0388,143.36,143.28,10.12]
[1641704116008,1.98015012,143.34,143.29,42.35677983]
[1641704116710,1.98015012,143.34,143.29,31.88867983]
[1641704116910,1.98015012,143.33,143.29,31.88867983]
[1641704117539,1.98015012,143.33,143.3,0.26]
[1641704117741,1.98015012,143.33,143.3,3.26]
[1641704117939,1.98015012,143.33,143.3,10.4669]
[1641704118443,1.98015012,143.35,143.29,31.88867983]
[1641704118744,1.98015012,143.35,143.3,0.26]
[1641704119744,1.98015012,143.35,143.29,31.88867983]
[1641704119943,1.98015012,143.35,143.18,3.64292042]
[1641704119944,1.98015012,143.35,143.25,10.12]
[1641704120147,3.0,143.34,143.25,10.12]
[1641704120443,10.4743,143.28,143.25,10.12]
[1641704120644,6.06431425,143.27,143.25,10.12]
[1641704121245,6.06431425,143.27,143.21,10.12]
[1641704122048,6.06431425,143.27,143.22,27.62919212]
[1641704122248,3.03219997,143.27,143.22,27.62919212]
[1641704122449,3.03219997,143.27,143.23,0.25]
[1641704123349,1.98015012,143.31,143.23,0.25]
[1641704124150,1.98015012,143.31,143.23,3.25]
[1641704124553,1.98015012,143.31,143.23,13.7227]
[1641704125152,1.98015012,143.32,143.23,13.7227]
[1641704125351,1.98015012,143.32,143.23,10.7227]
[1641704126653,1.98015012,143.32,143.23,0.25]
[1641704127153,1.98015012,143.32,143.23,0.51]
[1641704127553,3.0,143.31,143.23,0.51]
[1641704127752,10.4742,143.29,143.23,0.25]
[1641704128154,10.4742,143.29,143.22,27.62919212]
[1641704128353,10.4742,143.29,143.22,37.74919212]
[1641704128954,33.3087,143.3,143.22,48.22279212]
[1641704129559,35.28885012,143.3,143.22,48.22279212]
[1641704129760,24.81525012,143.3,143.22,48.22279212]
[1641704129960,24.81525012,143.3,143.23,0.25]
[1641704130264,22.8351,143.3,143.23,10.4723]
[1641704130460,22.8351,143.3,143.23,3.51]
[1641704130661,22.8351,143.3,143.23,3.26]
[1641704131262,22.8351,143.3,143.23,3.0]
[1641704131460,10.4771,143.25,143.23,3.0]
[1641704131660,22.8351,143.3,143.21,24.1305]
[1641704132061,3.0,143.29,143.21,24.1305]
[1641704132261,34.9291,143.27,143.21,24.1305]
[1641704132462,3.0,143.29,143.21,24.1305]
[1641704133161,24.81525012,143.3,143.21,24.1305]
[1641704133362,24.81525012,143.3,143.22,0.26]
[1641704134368,22.8351,143.3,143.22,0.51]
[1641704134767,22.8351,143.3,143.22,10.63]
[1641704135266,22.8351,143.3,143.22,21.1034]
[1641704135466,22.8351,143.3,143.22,20.8534]
[1641704135866,22.8351,143.3,143.22,10.38]
[1641704136302,22.8351,143.3,143.23,13.4726]
[1641704136467,22.8351,143.3,143.24,0.26]
[1641704136869,22.8351,143.3,143.22,10.12]
[1641704137267,22.8351,143.3,143.23,3.0]
[1641704137466,24.81525012,143.3,143.23,3.0]
[1641704137668,24.81525012,143.3,143.21,24.1305]
[1641704137868,35.28945012,143.3,143.21,34.6047]
[1641704138066,35.28945012,143.3,143.22,0.26]
[1641704138266,24.81525012,143.3,143.22,3.26]
[1641704138866,22.8351,143.3,143.22,3.26]
[1641704139266,22.8351,143.3,143.22,23.8533]
[1641704140068,1.98015012,143.32,143.22,23.8533]
[1641704140275,25.01595012,143.32,143.22,23.8533]
[1641704140877,25.01595012,143.32,143.22,13.38]
[1641704141275,1.98015012,143.31,143.22,13.38]
[1641704141883,10.4749,143.29,143.22,13.38]
[1641704142088,25.01595012,143.32,143.22,10.38]
[1641704142986,10.4737,143.31,143.22,20.8533]
[1641704143186,10.4737,143.31,143.23,3.0]
[1641704143187,1.98015012,143.31,143.23,3.0]
[1641704143386,1.98015012,143.31,143.24,0.26]
[1641704143585,1.98015012,143.31,143.23,3.0]
[1641704144007,1.98015012,143.31,143.22,10.12]
[1641704144208,1.98015012,143.31,143.23,3.0]
[1641704145013,1.98015012,143.31,143.22,10.12]
[1641704145310,1.98015012,143.31,143.23,0.26]
[1641704145511,1.98015012,143.3,143.23,3.26]
[1641704146010,1.98015012,143.3,143.22,10.12]
[1641704146513,1.98015012,143.3,143.22,20.5934]
[1641704146911,1.98015012,143.3,143.23,0.51]
[1641704147312,1.98015012,143.3,143.23,3.51]
[1641704147812,1.98015012,143.3,143.23,13.63]
[1641704148013,1.98015012,143.3,143.24,3.0]
[1641704148413,1.98015012,143.3,143.25,10.7296]
[1641704148613,1.98015012,143.3,143.26,3.0]
[1641704149014,1.98015012,143.31,143.26,3.0]
[1641704149216,1.98015012,143.31,143.25,3.26]
[1641704149413,1.98015012,143.31,143.25,13.7299]
[1641704149615,1.98015012,143.3,143.25,13.4699]
[1641704150415,1.98015012,143.3,143.24,24.9551]
[1641704151017,1.98015012,143.3,143.25,0.26]
[1641704152123,1.98015012,143.29,143.25,0.26]
[1641704152824,1.98015012,143.29,143.24,24.9551]
[1641704153929,1.98015012,143.29,143.25,0.26]
[1641704154328,1.98015012,143.31,143.25,0.26]
[1641704154731,1.98015012,143.31,143.25,10.531]
[1641704154938,1.98015012,143.31,143.26,22.86790715]
[1641704155168,1.98015012,143.31,143.29,10.4674]
[1641704155365,1.98015012,143.3,143.29,17.7864]
[1641704155565,1.98015012,143.3,143.29,20.7864]
[1641704155763,1.98015012,143.3,143.29,21.0464]
[1641704156165,1.98015012,143.3,143.29,20.7864]
[1641704156371,1.98015012,143.33,143.29,21.0464]
[1641704156572,1.98015012,143.33,143.3,13.467]
[1641704156769,1.98015012,143.33,143.3,10.467]
[1641704159277,1.98015012,143.34,143.3,10.467]
[1641704160074,1.98015012,143.34,143.32,10.4659]
[1641704160280,8.04446437,143.34,143.32,10.4659]
[1641704160475,8.04446437,143.34,143.29,24.2818]
[1641704160679,8.04446437,143.34,143.3,3.0]
[1641704160876,8.04446437,143.34,143.3,3.26]
[1641704161079,1.98015012,143.34,143.3,13.7267]
[1641704161275,1.98015012,143.34,143.3,10.7267]
[1641704162077,1.98015012,143.34,143.31,3.0]
[1641704162578,1.98015012,143.34,143.3,10.7267]
[1641704162777,1.98015012,143.34,143.3,10.4667]
[1641704162978,1.98015012,143.34,143.29,3.26]
[1641704163178,1.98015012,143.35,143.29,3.26]
[1641704163683,1.98015012,143.35,143.29,13.7285]
[1641704164277,1.98015012,143.35,143.29,10.7285]
[1641704164678,1.98015012,143.35,143.3,3.0]
[1641704164979,1.98015012,143.35,143.31,0.26]
[1641704165579,1.98015012,143.35,143.29,3.0]
[1641704165780,1.98015012,143.35,143.28,23.0231]
[1641704166179,1.98015012,143.35,143.28,33.4921]
[1641704166583,1.98015012,143.34,143.28,33.4921]
[1641704167182,1.98015012,143.34,143.28,23.0231]
[1641704168686,1.88523681,143.34,143.28,23.0231]
[1641704168988,1.88523681,143.34,143.27,10.4693]
[1641704169191,25.18820342,143.33,143.26,8.269]
[1641704169389,25.18820342,143.33,143.27,3.0]
[1641704169791,35.65990342,143.33,143.27,3.0]
[1641704170589,25.18820342,143.33,143.27,3.0]
[1641704170790,10.473,143.32,143.27,3.0]
[1641704170991,10.473,143.32,143.25,3.0]
[1641704172597,35.66010342,143.33,143.25,3.0]
[1641704174415,26.44381642,143.33,143.2,34.9066]
[1641704174715,25.8313,143.32,143.17,85.0682]
[1641704175127,25.8313,143.32,143.18,28.31199575]
[1641704175128,1.255613,143.31,143.18,28.31199575]
[1641704175418,10.4775,143.25,143.18,28.31199575]
[1641704175621,34.212713,143.31,143.18,28.31199575]
[1641704175821,38.88299587,143.29,143.18,28.31199575]
[1641704176019,23.8357,143.28,143.18,28.31199575]
[1641704176219,26.8357,143.28,143.18,28.31199575]
[1641704176519,10.4766,143.27,143.18,38.78829575]
[1641704177523,10.4766,143.27,143.19,0.26]
[1641704177726,10.4766,143.27,143.19,0.51]
[1641704177925,34.311,143.28,143.19,10.7353]
[1641704178130,23.8357,143.28,143.19,34.997]
[1641704179025,10.4764,143.27,143.19,24.5217]
[1641704179826,23.8357,143.28,143.19,24.5217]
[1641704180228,10.4774,143.26,143.19,24.5217]
[1641704180730,23.8357,143.28,143.19,24.5217]
[1641704180930,23.8357,143.28,143.2,3.25]
[1641704181330,23.8357,143.28,143.21,0.26]
[1641704182830,23.8357,143.28,143.2,13.7248]
[1641704183631,23.8357,143.28,143.2,3.25]
[1641704184033,23.8357,143.28,143.2,0.25]
[1641704184332,23.8357,143.28,143.2,0.51]
[1641704184933,34.3112,143.28,143.2,0.51]
[1641704186369,23.8357,143.28,143.2,10.985]
[1641704186571,23.8357,143.28,143.2,13.985]
[1641704188177,23.8357,143.28,143.2,24.105]
[1641704192382,14.57315674,143.31,143.2,24.105]
[1641704192583,3.95729587,143.33,143.21,24.58135313]
[1641704192883,3.95729587,143.33,143.22,10.63]
[1641704193083,14.57056302,143.35,143.22,15.28345313]
[1641704193282,23.7373,143.34,143.23,23.5137]
[1641704193485,48.69476279,143.34,143.24,38.71875188]
[1641704193983,48.69476279,143.34,143.25,34.1171]
[1641704194183,48.69476279,143.34,143.25,44.2371]
[1641704194385,48.69476279,143.34,143.26,3.26]
[1641704194784,23.7373,143.34,143.26,3.26]
[1641704194984,23.7373,143.34,143.28,10.4687]
[1641704199587,23.7373,143.34,143.29,10.4679]
[1641704199986,23.7373,143.34,143.27,0.25]
[1641704200188,23.7373,143.34,143.27,0.51]
[1641704200587,23.7373,143.34,143.29,10.4683]
[1641704200989,14.57056302,143.35,143.3,25.87887858]
[1641704201191,13.40563955,143.37,143.31,10.12]
[1641704201390,13.40563955,143.37,143.31,13.63]
[1641704201588,13.40563955,143.37,143.31,15.28345313]
[1641704201989,13.40563955,143.37,143.32,10.4624]
[1641704202188,9.44834368,143.37,143.32,10.4624]
[1641704202390,9.44834368,143.37,143.34,34.8723]
[1641704202588,9.44834368,143.37,143.36,27.46795287]
[1641704202989,9.44834368,143.37,143.36,30.46795287]
[1641704203389,9.44834368,143.37,143.36,3.0]
[1641704203589,15.51265793,143.37,143.33,3.51]
[1641704203818,15.51265793,143.37,143.35,34.8697]
[1641704203991,9.44834368,143.35,143.31,10.12]
[1641704204191,9.44834368,143.35,143.23,17.57416758]
[1641704204192,9.44834368,143.35,143.27,10.12]
[1641704204389,9.44834368,143.35,143.28,27.84260466]
[1641704204589,3.0,143.34,143.28,27.84260466]
[1641704204791,9.44834368,143.35,143.28,27.84260466]
[1641704205790,9.44834368,143.35,143.29,16.4122]
[1641704208594,9.44834368,143.35,143.29,5.944]
[1641704210494,19.91734368,143.35,143.29,5.944]
[1641704210697,9.44834368,143.35,143.29,5.944]
[1641704211697,13.4702,143.34,143.29,5.944]
[1641704212896,10.4702,143.34,143.29,5.944]
[1641704213598,10.4705,143.33,143.29,5.944]
[1641704213802,13.4705,143.33,143.26,10.4704]
[1641704213998,31.50704766,143.32,143.26,10.4704]
[1641704214200,9.44834368,143.35,143.26,10.4704]
[1641704214398,9.44834368,143.35,143.26,10.12]
[1641704214597,19.91754368,143.35,143.26,10.12]
[1641704214800,3.0,143.34,143.27,0.26]
[1641704215000,9.44834368,143.35,143.27,0.26]
[1641704215202,38.53162196,143.35,143.27,0.26]
[1641704215607,10.4706,143.33,143.27,0.26]
[1641704216207,61.39402196,143.35,143.27,0.26]
[1641704216407,61.39402196,143.35,143.27,3.26]
[1641704216604,3.0,143.34,143.27,3.26]
[1641704216807,13.4702,143.34,143.27,13.7298]
[1641704217309,10.4702,143.34,143.27,13.7298]
[1641704217507,10.4702,143.34,143.27,10.7298]
[1641704218512,10.4706,143.33,143.27,0.26]
[1641704218938,10.4706,143.33,143.27,3.26]
[1641704219641,71.86352196,143.35,143.27,13.7295]
[1641704219840,3.0,143.34,143.27,13.7295]
[1641704220039,3.0,143.34,143.27,3.26]
[1641704220241,3.0,143.34,143.26,10.12]
[1641704220642,10.4709,143.33,143.26,20.5904]
[1641704221341,3.0,143.32,143.26,20.5904]
[1641704221741,10.4709,143.33,143.26,20.5904]
[1641704222342,3.0,143.32,143.26,20.5904]
[1641704222742,10.4709,143.33,143.26,20.5904]
[1641704222942,65.35131783,143.35,143.26,20.5904]
[1641704223343,3.0,143.34,143.27,3.0]
[1641704223542,3.0,143.34,143.24,34.6952]
[1641704223947,10.4709,143.33,143.24,34.6952]
[1641704224343,3.0,143.34,143.25,3.0]
[1641704224545,3.0,143.34,143.25,13.4707]
[1641704225043,13.4704,143.34,143.25,13.4707]
[1641704225845,3.0,143.34,143.25,13.4707]
[1641704226045,3.0,143.34,143.25,10.4707]
[1641704226246,3.0,143.34,143.24,35.0473]
[1641704227451,10.4721,143.31,143.25,3.0]
[1641704227854,10.4721,143.31,143.24,35.0473]
[1641704228751,23.473,143.33,143.24,35.0473]
[1641704229252,3.0,143.32,143.24,35.0473]
[1641704230154,23.473,143.33,143.25,13.7299]
[1641704235860,42.48891783,143.35,143.25,13.7299]
[1641704236060,65.18871783,143.35,143.28,10.4678]
[1641704236263,65.18871783,143.35,143.26,23.2132]
[1641704236462,65.18871783,143.35,143.27,0.26]
[1641704236661,61.23142196,143.35,143.27,3.26]
[1641704237261,61.23142196,143.35,143.28,10.4687]
[1641704237462,65.18871783,143.35,143.27,3.0]
[1641704237865,65.18871783,143.35,143.26,23.2132]
[1641704238063,65.18871783,143.35,143.27,0.26]
[1641704238265,65.18871783,143.35,143.27,3.0]
[1641704238665,65.18871783,143.35,143.27,13.4699]
[1641704238666,75.65791783,143.35,143.27,13.4699]
[1641704239066,65.18871783,143.35,143.25,22.7015]
[1641704239267,65.18871783,143.35,143.26,3.0]
[1641704239568,3.0,143.34,143.24,10.12]
[1641704239767,10.4727,143.3,143.24,10.12]
[1641704240369,10.4727,143.3,143.25,0.26]
[1641704240871,10.4727,143.3,143.24,10.12]
[1641704241571,28.47639587,143.33,143.24,20.5922]
[1641704241972,28.47639587,143.33,143.24,10.12]
[1641704242673,10.4713,143.32,143.24,20.5922]
[1641704242877,10.4713,143.32,143.25,3.0]
[1641704243473,28.47639587,143.33,143.24,10.12]
[1641704244877,10.4725,143.31,143.24,20.592]
[1641704245298,28.47639587,143.33,143.24,20.592]
[1641704246100,10.4713,143.32,143.25,13.4711]
[1641704247603,28.47639587,143.33,143.25,13.4711]
[1641704247604,38.94689587,143.33,143.25,13.4711]
[1641704247804,28.47639587,143.33,143.25,13.4711]
[1641704248204,28.47639587,143.33,143.25,10.4711]
[1641704249904,10.4713,143.32,143.25,10.4711]
[1641704250304,28.47639587,143.33,143.26,13.4701]
[1641704251103,24.5191,143.33,143.26,13.4701]
[1641704251304,24.5191,143.33,143.27,0.25]
[1641704251504,24.5191,143.33,143.28,10.4691]
[1641704252805,24.5191,143.33,143.27,0.25]
[1641704253806,13.40563955,143.35,143.27,10.9799]
[1641704254007,13.40563955,143.35,143.28,13.12]
[1641704254406,13.40563955,143.35,143.29,0.51]
[1641704254607,9.44834368,143.35,143.29,10.63]
[1641704254805,9.44834368,143.35,143.3,23.91735657]
[1641704255006,9.44834368,143.35,143.31,0.26]
[1641704255205,9.44834368,143.35,143.32,10.4638]
[1641704255405,9.44834368,143.35,143.33,0.25]
[1641704255607,9.44834368,143.35,143.33,3.25]
[1641704256009,9.44834368,143.35,143.33,0.25]
[1641704256506,9.44834368,143.35,143.34,10.4643]
[1641704256907,9.44834368,143.35,143.34,13.4643]
[1641704262010,9.44834368,143.35,143.34,13.7143]
[1641704264418,14.57107673,143.41,143.34,13.7143]
[1641704264616,14.57107673,143.41,143.35,3.0]
[1641704264816,14.57107673,143.41,143.36,10.46]
[1641704265017,14.57107673,143.41,143.37,3.0]
[1641704265617,78.4778,143.43,143.37,3.0]
[1641704265817,28.28139587,143.44,143.37,3.0]
[1641704266020,42.84758056,143.44,143.35,0.25]
[1641704266218,42.84758056,143.44,143.35,0.51]
[1641704266421,38.89028469,143.44,143.35,0.51]
[1641704266620,38.89028469,143.44,143.37,10.4603]
[1641704266821,27.64364273,143.43,143.37,10.4603]
[1641704267021,27.64364273,143.43,143.38,3.0]
[1641704267620,27.64364273,143.43,143.37,3.0]
[1641704267821,27.64364273,143.43,143.37,38.1156]
[1641704268021,27.64364273,143.43,143.38,3.0]
[1641704268723,27.64364273,143.43,143.39,10.46]